Cogmind - Beta 14 @@@ ROGUE MODE // 2024.10.02 @ 14:54:58 Player: LEWiKK Result: Destroyed by S-10 Pest with Light Assault Rifle Performance ------------- Evolutions (0) 0 Regions Visited (1) 200 Robots Destroyed (6) 30 Value Destroyed (198) 198 Prototype IDs (0) 0 Alien Tech Used (0) 0 Bonus (0) 0 TOTAL SCORE: 428 Bonus ------- None Cogmind --------- Core Integrity 0/250 Matter 300/300 Energy 100/100 System Corruption 0% Temperature Cool (0) Movement Core (200) Ox3 Location -10/Materials Parts ------- > --- POWER (1) -------- (None) > --- PROPULSION (2) --- Compact Wheel > --- UTILITY (2) ------ Medium Storage Unit > --- WEAPON (2) ------- (None) > --- INVENTORY (10) --- Light Ion Engine Medium Matter Pod (100) Targeting Computer Peak State ------------ > --- POWER ------------ Ion Engine > --- PROPULSION ------- Light Treads Light Treads > --- UTILITY ---------- Small Storage Unit > --- WEAPON ----------- EM Pulse Gun Light Assault Rifle > --- INVENTORY -------- Light Ion Engine Aluminum Leg Aluminum Leg Compact Wheel Compact Wheel Small Laser [Rating: 6] Favorites ----------- Power Ion Engine Engine Ion Engine Propulsion Light Treads Treads Light Treads Leg Aluminum Leg Wheel Compact Wheel Utility Small Storage Unit Storage Small Storage Unit Weapon EM Pulse Gun Energy Gun EM Pulse Gun Ballistic Gun Light Assault Rifle Build | -11 -10 ------- Run | Yrd Mat Slots Evolved . | . . Power . | . . Propulsion . | . . Utility . | . . Weapon . | . . Parts Attached 5 | 2 3 Power . | . . Engine . | . . Core . | . . Reactor . | . . Propulsion 4 | 2 2 Treads 3 | 2 1 Leg . | . . Wheel 1 | . 1 Hover . | . . Flight . | . . Utility 1 | . 1 Device . | . . Storage 1 | . 1 Processor . | . . Hackware . | . . Protection . | . . Artifact . | . . Weapon . | . . Energy Gun . | . . Energy Cannon . | . . Ballistic Gun . | . . Ballistic Cannon . | . . Launcher . | . . Special Weapon . | . . Impact Weapon . | . . Slashing Weapon . | . . Piercing Weapon . | . . Special Melee Weapon . | . . Unidentified Prototypes . | . . Parts Lost 6 | . 6 Power 1 | . 1 Propulsion 3 | . 3 Utility . | . . Weapon 2 | . 2 Highest Loss Streak 6 | . 6 To Critical Strikes . | . . Average Slot Usage (%) 76 | . 76 Engine 12 | . 12 Treads 26 | . 26 Storage 14 | . 14 Energy Gun 11 | . 11 Ballistic Gun 11 | . 11 Peak Build Rating 6 | 6 6 Average Rating 5 | 5 5 On Entrance 6 | 6 6 Naked Turns . | . . Heaviest Build 18 | 13 18 Greatest Support 40 | 40 40 Greatest Overweight (x) . | . . Average Overweight (x) . | . . Largest Inventory Capacity 10 | 8 10 Average Capacity 8 | 8 8 Most Carried 7 | 7 6 Average Carried 4 | 5 4 Final Capacity 10 | 8 10 Final Carried 4 | 4 3 Class Distribution -------------------- 100% | Mutant Dominant Class ---------------- Mutant | -10/Materials Resources | -11 -10 ----------- Run | Yrd Mat Matter Collected 341 | 177 164 Remotely . | . . Salvage Created 306 | . 306 Parts 12 | . 12 Haulers Intercepted 1 | . 1 Recyclers Shooed . | . . Parts Field Recycled . | . . Retrieved Matter . | . . Parts Self-Destructed . | . . Prevented . | . . Kills | -11 -10 ------- Run | Yrd Mat Combat Hostiles Destroyed 5 | . 5 Guns 5 | . 5 Classes Destroyed 2 | . 2 Hauler 1 | . 1 Grunt 5 | . 5 Best Kill Streak 2 | . 2 Combat Bots Only 2 | . 2 Max Kills in Single Turn 1 | . 1 Gunslinging . | . . Exploded . | . . Melee . | . . Uniques/NPCs Destroyed . | . . Combat | -11 -10 -------- Run | Yrd Mat Hostile Shots Fired 128 | . 128 Missed 25 | . 25 Damage Taken 937 | . 937 Core 258 | . 258 Absorbed by Shields . | . . Core Remaining (%) 100 | 100 . Volleys Fired 31 | . 31 Largest 2 | . 2 Hottest 60 | . 60 Shots Fired 62 | . 62 Gun 62 | . 62 Cannon . | . . Launcher . | . . Special . | . . Kinetic 31 | . 31 Thermal . | . . Explosive . | . . Electromagnetic 31 | . 31 Robot Hit Streak 6 | . 6 Robot Miss Streak 3 | . 3 Penetration Max . | . . Secondary Targets . | . . Shots Hit Robots 41 | . 41 Core Hits 15 | . 15 Critical Kills . | . . Critical Parts Destroyed 1 | . 1 Critical Strikes 5 | . 5 Destroy 1 | . 1 Corrupt 4 | . 4 Melee Attacks . | . . Impact . | . . Slashing . | . . Piercing . | . . Sneak Attacks . | . . Combat Hostiles . | . . Follow-up Attacks . | . . Damage Inflicted 528 | . 528 Guns 437 | . 437 Cannons . | . . Explosions 35 | . 35 Melee . | . . Ramming 56 | . 56 Kinetic 165 | . 165 Thermal 35 | . 35 Explosive . | . . Electromagnetic 272 | . 272 Impact . | . . Slashing . | . . Piercing . | . . Highest Corruption . | . . Average Corruption . | . . Corruption Purged . | . . Corruption Blocked . | . . Overload Shots . | . . Overflow Damage . | . . Projectiles . | . . Explosions . | . . Melee . | . . Knockbacks . | . . Impact . | . . Kinetic . | . . Secondary . | . . Self-Inflicted Damage 1 | . 1 Shots . | . . Rammed 38 | . 38 Targets Rammed 38 | . 38 Kicked . | . . Crushed . | . . Highest Temperature 121 | . 121 Average Temperature 52 | . 52 Received Heat Transfer 153 | . 153 Siege Activations . | . . Robots Corrupted . | . . Combat Hostiles . | . . Parts Fried 1 | . 1 Impact Corruptions . | . . Robots Melted . | . . Combat Hostiles . | . . Parts Melted . | . . Heat Transferred 50 | . 50 Parts Sabotaged . | . . Parts Stolen . | . . Parts Stripped . | . . Power Chain Reactions 1 | . 1 Alert | -11 -10 ------- Run | Yrd Mat Peak Influence 244 | . 244 Initial . | . . Average 108 | . 110 Maximum Alert Level 1 | . 1 Low Security (%) 79 | 100 79 Level 1 20 | . 20 Level 2 . | . . Level 3 . | . . Level 4 . | . . Level 5 . | . . High Security . | . . Max Security . | . . Squads Dispatched 1 | . 1 Investigation . | . . Extermination . | . . Reinforcement 1 | . 1 Assault . | . . Garrison . | . . Intercept . | . . Searches Triggered . | . . Construction Impeded . | . . Haulers Reinforced . | . . Active Scanning Responses . | . . Cargo Convoy Interrupts . | . . Stealth | -11 -10 --------- Run | Yrd Mat Distress Signals 1 | . 1 Communications Jammed . | . . Distress Signals . | . . Times Spotted 17 | . 17 Peak Tracking Total 6 | . 6 Tactical Retreats 2 | . 2 Traps | -11 -10 ------- Run | Yrd Mat Traps Triggered . | . . Indirectly . | . . Trap Hack Attempts . | . . Triggered . | . . Disarmed . | . . Reprogrammed . | . . Reused . | . . Traps Extracted . | . . Installed . | . . Triggered . | . . Machines | -11 -10 ---------- Run | Yrd Mat Machines Disabled . | . . Max in Single Turn . | . . Machines Repaired . | . . Machines Dismantled . | . . Machines Sabotaged . | . . Overloaded Fab Kills . | . . Hacking | -11 -10 --------- Run | Yrd Mat Machines Accessed 3 | . 3 Terminals 3 | . 3 Fabricators . | . . Repair Stations . | . . Recycling Units . | . . Scanalyzers . | . . Garrison Access . | . . Total Hacks 8 | . 8 Successful 4 | . 4 Failed 4 | . 4 Catastrophic . | . . Database Lockouts . | . . Manual 8 | . 8 Terminals 8 | . 8 Fabricators . | . . Repair Stations . | . . Recycling Units . | . . Scanalyzers . | . . Garrison Access . | . . Terminal Hacks 1 | . 1 Registered Components 1 | . 1 Fabricator Hacks . | . . Repair Station Hacks . | . . Recycling Unit Hacks . | . . Scanalyzer . | . . Garrison Access Hacks . | . . Unauthorized Hacks 3 | . 3 Terminals 3 | . 3 Botnet 3 | . 3 Fabricators . | . . Repair Stations . | . . Recycling Units . | . . Scanalyzers . | . . Garrison Access . | . . Data Cores Recovered . | . . Used . | . . Hacking Detections 3 | . 3 Full Trace Events . | . . Feedback Events . | . . Feedback Blocked . | . . Robot Schematics Acquired . | . . Robots Built . | . . Authchips . | . . Time . | . . Total Robot Build Rating . | . . Part Schematics Acquired . | . . Parts Built . | . . Authchips . | . . Time . | . . Total Part Build Rating . | . . Parts Repaired . | . . Time . | . . Parts Recycled . | . . Recycled Matter . | . . Retrieved Matter . | . . Retrieved Components . | . . Parts Scanalyzed . | . . Part Schematics Acquired . | . . Parts Damaged . | . . Bothacking | -11 -10 ------------ Run | Yrd Mat Used RIF Installer . | . . Robots Hacked . | . . Non-combat . | . . Combat . | . . Robot Hacks Applied . | . . Relay Couplers Released . | . . Fabnet Peak Effective % . | . . Robots Rewired . | . . Allies Hacked . | . . Hacks Repelled . | . . Allies | -11 -10 -------- Run | Yrd Mat Total Allies . | . . Largest Group . | . . Highest-Rated Group . | . . Highest-Rated Ally . | . . Total Orders . | . . Ally Attacks . | . . Total Damage . | . . Kills . | . . Allies Corrupted . | . . Allies Melted . | . . Intel | -11 -10 ------- Run | Yrd Mat Robot Analysis Total . | . . Derelict Logs Recovered . | . . Drone Launches . | . . Drone Recoveries . | . . Exploration | -11 -10 ------------- Run | Yrd Mat Turns Passed 389 | 5 384 Spaces Moved 140 | 1 139 Core . | . . Treads 140 | 1 139 Legs . | . . Wheels . | . . Hover . | . . Flight . | . . Fastest Speed 160 | 160 160 Average Speed 160 | 160 160 Slowest Speed 160 | 160 160 Overloaded Moves . | . . Propulsion Burnouts . | . . Robots Hopped . | . . Cave-ins Triggered . | . . Exploration Rate (%) 14 | 2 26 Regions Visited 1 Branch Regions . Pre-discovered Areas . | . . Known Exits Taken . | . . Unknown Exits Taken 1 | 1 . Scrap Searched . | . . Spaces Dug . | . . Terrain Destroyed 5 | . 5 Melee . | . . Projectile . | . . AOE 5 | . 5 Terrain Rammed . | . . Walls Destroyed . | . . Machines Disabled . | . . Actions | -11 -10 --------- Run | Yrd Mat Total 229 | 6 223 Wait 3 | . 3 Move 139 | . 139 Hop . | . . Pick Up 5 | . 5 Fast Attach . | . . Attach 4 | 2 2 Detach 2 | 2 . Swap 1 | . 1 Drop 6 | 2 4 Fire 31 | . 31 Melee . | . . Ram 4 | . 4 Kick . | . . Crush 34 | . 34 Escape Stasis . | . . Rewire . | . . Trap . | . . Miscellaneous . | . . Route ------- -11/Scrapyard -10/Materials History --------- Turn | Location | Event 6 | -11/Scrapyard | Discovered new exit (range 0) 6 | -11/Scrapyard | Entered Materials 305 | -10/Materials | Build established: Mutant 343 | -10/Materials | Core integrity fell below 50% 378 | -10/Materials | Core integrity fell below 20% 390 | -10/Materials | Destroyed by S-10 Pest with Light Assault Rifle Last Messages --------------- Slammed into S-10 Pest. K-01 Serf collects debris. Slammed into S-10 Pest. K-01 Serf collects debris. Slammed into S-10 Pest. R-06 Scavenger collects Corrupted Aluminum Leg. Slammed into S-10 Pest. K-01 Serf collects debris. Lgt. Treads destroyed. Acquired 5 matter. Slammed into S-10 Pest. R-06 Scavenger collects Imp. Heat Sink. Slammed into S-10 Pest. Com. Wheel broken. Destabilizing: Short circuit. K-01 Serf collects debris. Slammed into S-10 Pest. K-01 Serf collects debris. Slammed into S-10 Pest. R-06 Scavenger collects Ion Engine. Map ----- +----------------------------------------------------+ | ?????????????????????????????????????????????????? | | ?????????????????????????????????????????????????? | | ?????????????????????????????????????????????????? | | ?????????????????????????????????????????????????? | | ?????????????????????????????????????????????????? | | #############????????????????????????????????????? | | ???????????????????????????????????? | | ? ?????????????????????????????????? | | ????????????????????????????????? | | ##########???? ????????????????????????????????? | | #???????=?????? ??????????????????????????????? | | #?????????????? ???????????????????????????????? | | #?????????????? ???????????????????????????????? | | #?????????????? ???????????????????????????????? | | #??????????????!= ???????????????????????????????? | | #????????????###/#####???????????????????????????? | | #????????????# % ##??????????????????????????? | | ########?????# "#??????????????????????????? | | # #?????# [ T###########????????????????? | | # #?????# "# #????????????????? | | # #?????# ## #????????????????? | | # #?????# ## ###??????????????? | | + #?????# ## %% + /??????????????? | | # #?????#% ##%%% #????????????????? | | ##############+##+##### %% k #????????????????? | | % % % %% %#####sr@ #????????????????? | | % % %%% %+%s% #????????????????? | | ############+#+## #########+#####????????????????? | | #?""" ## # #??????????????????????????????? | | #?""" ## """""# #??????????????????????????????? | | # """ ##! """""# #??????????????????????????????? | | # ## """""# #??????????????????????????????? | | + ## """""# #??????????????????????????????? | | # ## """""# #??????????????????????????????? | | ######### ?"""?#+#??????????????????????????????? | | # T ## ?????? ???????????????????????????????? | | # ## ??????? ???????????????????????????????? | | + """ #????????? ???????????????????????????????? | | # """ #????????? ???????????????????????????????? | | # """ #????????? ???????????????????????????????? | | # #????????? ???????????????????????????????? | | ########????????? ???????????????????????????????? | | ####?????????????????????????????????????????????? | | #?????????????????????????????????????????????? | | #?????????????????????????????????????????????? | | #?????????????????????????????????????????????? | | #?????????????????????????????????????????????? | | #?????????????????????????????????????????????? | | ####?????????????????????????????????????????????? | | | +----------------------------------------------------+ Best States ------------- Heat Dissipation 25 Energy Generation 10 Energy Capacity 250 Matter Stores 300 Matter Capacity 300 Sight Range 16 Terrain Scan Density 10 Evasion (%) 40 Recoil Reduction 2 Item Schematics ----------------- None Robot Schematics ------------------ None Fabricated ------------ Nothing Alien Tech Used ----------------- None Achievements -------------- None Challenges ------------ None Game ------ Seed ImpulseAlphaLance Manual? 0 Play Time 00:07:00 Cumulative 69.0 hours Start 2024.10.02 @ 14:49:13 End 2024.10.02 @ 14:54:58 Sessions 1 Manual Loads 0 Difficulty Rogue Special Mode None Game No. 71 Rogue 71 Adventurer 0 Explorer 0 Win Type - Total 2 Types 1/0/0/1/0/0/0/0/0 Lore% 50 Gallery% 41 Achievement% 41 Wizard Run 0 Options --------- Layout 1 ASCII 0 Keyboard 1 Movement Numpad Keybinds 0 Fullscreen 2 Font 20/SmallcapsGlow Map View 54x42 Zoom Use 0% Tactical HUD 0 Map Filters NONE Filters NONE Steam 1 RUN: 0682303a-d193-4e23-a848-66d6ae532473